[Event "Titled Tuesday Blitz August 08 Late 2023"]
[White "Arnold, Ken"]
[Black "Skaric, Djuro"]
[WhiteFideId "2056836"]
[BlackFideId "934569"]
[WhiteElo "2459"]
[BlackElo "2324"]
[Result "1-0"]
[Round "6"]
[TimeControl "180+1"]
[Date "2023.08.08"]
[WhiteClock "0:00:39"]
[BlackClock "0:01:12"]
[Board "116"]

1. d4 {[%clk 0:03:00]}  g6 {[%clk 0:02:59]} 2. Nf3 {[%clk 0:03:01]}  Bg7 {[%clk 0:02:58]} 3. c3 {[%clk 0:03:01]}  d6 {[%clk 0:02:59]} 4. Bf4 {[%clk 0:03:01]}  Nf6 {[%clk 0:02:59]} 5. e3 {[%clk 0:03:02]}  O-O {[%clk 0:02:59]} 6. Nbd2 {[%clk 0:03:02]}  Nc6 {[%clk 0:03:00]} 7. h3 {[%clk 0:03:02]}  h6 {[%clk 0:03:00]} 8. Bh2 {[%clk 0:03:03]}  Nd7 {[%clk 0:03:01]} 9. Bc4 {[%clk 0:03:01]}  e5 {[%clk 0:02:57]} 10. Qc2 {[%clk 0:02:59]}  Kh7 {[%clk 0:02:56]} 11. O-O {[%clk 0:02:58]}  f5 {[%clk 0:02:54]} 12. dxe5 {[%clk 0:02:58]}  dxe5 {[%clk 0:02:54]} 13. Rad1 {[%clk 0:02:50]}  Qe7 {[%clk 0:02:54]} 14. b4 {[%clk 0:02:48]}  Nb6 {[%clk 0:02:54]} 15. Bb3 {[%clk 0:02:47]}  a6 {[%clk 0:02:54]} 16. a4 {[%clk 0:02:46]}  Be6 {[%clk 0:02:53]} 17. a5 {[%clk 0:02:46]}  Nd7 {[%clk 0:02:53]} 18. Bxe6 {[%clk 0:02:39]}  Qxe6 {[%clk 0:02:52]} 19. Nb3 {[%clk 0:02:37]}  Rf7 {[%clk 0:02:45]} 20. Rd2 {[%clk 0:02:30]}  b6 {[%clk 0:02:44]} 21. Ra1 {[%clk 0:02:21]}  bxa5 {[%clk 0:02:37]} 22. Nxa5 {[%clk 0:02:20]}  e4 {[%clk 0:02:31]} 23. Nd4 {[%clk 0:02:13]}  Nxd4 {[%clk 0:02:30]} 24. exd4 {[%clk 0:02:12]}  Nb6 {[%clk 0:02:30]} 25. Qa2 {[%clk 0:02:02]}  Qd7 {[%clk 0:02:24]} 26. Nc6 {[%clk 0:01:58]}  Qxc6 {[%clk 0:02:18]} 27. Qxf7 {[%clk 0:01:56]}  Qxc3 {[%clk 0:02:18]} 28. Rda2 {[%clk 0:01:49]}  Qxd4 {[%clk 0:02:12]} 29. Qxc7 {[%clk 0:01:48]}  Nd5 {[%clk 0:02:10]} 30. Qc6 {[%clk 0:01:43]}  Rb8 {[%clk 0:02:03]} 31. Rxa6 {[%clk 0:01:42]}  Nxb4 {[%clk 0:02:02]} 32. Qxg6+ {[%clk 0:01:41]}  Kh8 {[%clk 0:02:00]} 33. Ra8 {[%clk 0:01:35]}  Rd8 {[%clk 0:01:34]} 34. Qd6 {[%clk 0:00:45]}  Qxd6 {[%clk 0:01:20]} 35. Bxd6 {[%clk 0:00:44]}  Nc6 {[%clk 0:01:18]} 36. Rxd8+ {[%clk 0:00:42]}  Nxd8 {[%clk 0:01:18]} 37. Ra8 {[%clk 0:00:42]}  Bf6 {[%clk 0:01:12]} 38. Bc7 {[%clk 0:00:39]} 1-0


[Site "https://www.chess.com"]

[Event "Titled Tuesday Blitz August 08 Late 2023"]
[White "Ladan, Nicholas"]
[Black "Sarkar, Justin"]
[WhiteFideId "30918855"]
[BlackFideId "2010011"]
[WhiteElo "2427"]
[BlackElo "2242"]
[Result "1-0"]
[Round "6"]
[TimeControl "180+1"]
[Date "2023.08.08"]
[WhiteClock "0:00:06"]
[BlackClock "0:00:00"]
[Board "123"]

1. b4 {[%clk 0:03:00]}  c6 {[%clk 0:02:32]} 2. Bb2 {[%clk 0:02:59]}  a5 {[%clk 0:02:30]} 3. a3 {[%clk 0:02:59]}  axb4 {[%clk 0:02:27]} 4. axb4 {[%clk 0:03:00]}  Rxa1 {[%clk 0:02:27]} 5. Bxa1 {[%clk 0:03:01]}  Nf6 {[%clk 0:02:22]} 6. Na3 {[%clk 0:02:59]}  Na6 {[%clk 0:02:08]} 7. b5 {[%clk 0:02:55]}  Qa5 {[%clk 0:01:51]} 8. bxa6 {[%clk 0:02:50]}  Qxa3 {[%clk 0:01:50]} 9. axb7 {[%clk 0:02:49]}  Bxb7 {[%clk 0:01:50]} 10. e3 {[%clk 0:02:42]}  e6 {[%clk 0:01:46]} 11. Qb1 {[%clk 0:02:40]}  Qa7 {[%clk 0:01:23]} 12. Nf3 {[%clk 0:02:23]}  Be7 {[%clk 0:01:21]} 13. Bd3 {[%clk 0:02:21]}  O-O {[%clk 0:01:19]} 14. O-O {[%clk 0:02:18]}  Ba6 {[%clk 0:01:14]} 15. c4 {[%clk 0:02:16]}  h6 {[%clk 0:01:02]} 16. Qc2 {[%clk 0:02:04]}  c5 {[%clk 0:00:58]} 17. e4 {[%clk 0:01:43]}  d6 {[%clk 0:00:53]} 18. e5 {[%clk 0:01:41]}  dxe5 {[%clk 0:00:53]} 19. Nxe5 {[%clk 0:01:42]}  Qc7 {[%clk 0:00:48]} 20. Re1 {[%clk 0:01:34]}  Ra8 {[%clk 0:00:41]} 21. Bf1 {[%clk 0:01:17]}  Bb7 {[%clk 0:00:41]} 22. Bc3 {[%clk 0:01:15]}  Nd7 {[%clk 0:00:33]} 23. Ng4 {[%clk 0:01:00]}  h5 {[%clk 0:00:24]} 24. Ne3 {[%clk 0:00:57]}  Bf6 {[%clk 0:00:21]} 25. Rb1 {[%clk 0:00:24]}  Bxc3 {[%clk 0:00:17]} 26. Qxc3 {[%clk 0:00:25]}  Bc6 {[%clk 0:00:17]} 27. h3 {[%clk 0:00:22]}  Qe5 {[%clk 0:00:15]} 28. Qxe5 {[%clk 0:00:17]}  Nxe5 {[%clk 0:00:15]} 29. Rb6 {[%clk 0:00:16]}  g5 {[%clk 0:00:11]} 30. h4 {[%clk 0:00:11]}  g4 {[%clk 0:00:10]} 31. Rb1 {[%clk 0:00:06]}  Rd8 {[%clk 0:00:09]} 32. Rd1 {[%clk 0:00:05]}  Be4 {[%clk 0:00:08]} 33. Be2 {[%clk 0:00:05]}  Bd3 {[%clk 0:00:08]} 34. Kf1 {[%clk 0:00:06]}  Rd4 {[%clk 0:00:07]} 35. Bxd3 {[%clk 0:00:06]}  Nxd3 {[%clk 0:00:07]} 36. g3 {[%clk 0:00:06]}  Nb2 {[%clk 0:00:06]} 37. Rb1 {[%clk 0:00:05]}  Nxc4 {[%clk 0:00:01]} 38. Ke2 {[%clk 0:00:05]}  Nxe3 {[%clk 0:00:01]} 39. fxe3 {[%clk 0:00:05]}  Rb4 {[%clk 0:00:02]} 40. Rc1 {[%clk 0:00:05]}  c4 {[%clk 0:00:02]} 41. Ra1 {[%clk 0:00:05]}  Rb3 {[%clk 0:00:02]} 42. Ra5 {[%clk 0:00:05]}  c3 {[%clk 0:00:02]} 43. dxc3 {[%clk 0:00:05]}  Rxc3 {[%clk 0:00:02]} 44. Rxh5 {[%clk 0:00:06]}  Rc2+ {[%clk 0:00:03]} 45. Kd3 {[%clk 0:00:06]}  f6 {[%clk 0:00:03]} 46. Ke4 {[%clk 0:00:05]}  Rg2 {[%clk 0:00:02]} 47. Kf4 {[%clk 0:00:06]}  f5 {[%clk 0:00:02]} 48. e4 {[%clk 0:00:06]}  Kg7 {[%clk 0:00:02]} 49. exf5 {[%clk 0:00:06]}  exf5 {[%clk 0:00:02]} 50. Rg5+ {[%clk 0:00:05]}  Kh6 {[%clk 0:00:00]} 51. Rxf5 {[%clk 0:00:06]} 1-0


[Site "https://www.chess.com"]

[Event "Titled Tuesday Blitz August 08 Late 2023"]
[White "Vafin, Ayrat"]
[Black "Karas, Marek"]
[WhiteFideId "4146530"]
[BlackFideId "14928558"]
[WhiteElo "2309"]
[BlackElo "2424"]
[Result "0-1"]
[Round "6"]
[TimeControl "180+1"]
[Date "2023.08.08"]
[WhiteClock "0:00:01"]
[BlackClock "0:01:06"]
[Board "124"]

1. Nf3 {[%clk 0:03:00]}  g6 {[%clk 0:02:55]} 2. g3 {[%clk 0:03:01]}  Bg7 {[%clk 0:02:56]} 3. d4 {[%clk 0:03:01]}  d6 {[%clk 0:02:51]} 4. Bg2 {[%clk 0:03:01]}  Nf6 {[%clk 0:02:51]} 5. O-O {[%clk 0:03:01]}  O-O {[%clk 0:02:52]} 6. c4 {[%clk 0:03:02]}  c6 {[%clk 0:02:52]} 7. Nc3 {[%clk 0:03:02]}  Bf5 {[%clk 0:02:51]} 8. Bg5 {[%clk 0:03:00]}  Ne4 {[%clk 0:02:48]} 9. Nxe4 {[%clk 0:02:57]}  Bxe4 {[%clk 0:02:49]} 10. b3 {[%clk 0:02:56]}  d5 {[%clk 0:02:41]} 11. Be3 {[%clk 0:02:41]}  c5 {[%clk 0:02:35]} 12. dxc5 {[%clk 0:02:26]}  Bxa1 {[%clk 0:02:17]} 13. Qxa1 {[%clk 0:02:27]}  dxc4 {[%clk 0:02:17]} 14. Bh6 {[%clk 0:02:23]}  f6 {[%clk 0:02:08]} 15. Rd1 {[%clk 0:02:15]}  Qc7 {[%clk 0:02:06]} 16. Bh3 {[%clk 0:02:06]}  Na6 {[%clk 0:01:44]} 17. Rd7 {[%clk 0:01:34]}  Qxc5 {[%clk 0:01:38]} 18. Be6+ {[%clk 0:01:15]}  Kh8 {[%clk 0:01:37]} 19. Ng5 {[%clk 0:01:13]}  Bc6 {[%clk 0:01:29]} 20. Bxf8 {[%clk 0:00:17]}  Rxf8 {[%clk 0:01:24]} 21. Rd1 {[%clk 0:00:01]}  Qxg5 {[%clk 0:01:23]} 22. bxc4 {[%clk 0:00:02]}  Nc5 {[%clk 0:01:20]} 23. Bd5 {[%clk 0:00:01]}  Qe5 {[%clk 0:01:16]} 24. Qxe5 {[%clk 0:00:01]}  fxe5 {[%clk 0:01:16]} 25. Bxc6 {[%clk 0:00:01]}  bxc6 {[%clk 0:01:17]} 26. Rb1 {[%clk 0:00:01]}  Rd8 {[%clk 0:01:14]} 27. f3 {[%clk 0:00:02]}  Kg7 {[%clk 0:01:12]} 28. Kf2 {[%clk 0:00:03]}  Rd2 {[%clk 0:01:12]} 29. Ke3 {[%clk 0:00:04]}  Rxa2 {[%clk 0:01:11]} 30. Rb8 {[%clk 0:00:05]}  Ra3+ {[%clk 0:01:10]} 31. Kd2 {[%clk 0:00:05]}  Rb3 {[%clk 0:01:09]} 32. Rc8 {[%clk 0:00:05]}  Rb4 {[%clk 0:01:06]} 33. Rxc6 {[%clk 0:00:04]}  Rxc4 {[%clk 0:01:06]} 34. Ke3 {[%clk 0:00:01]}  Rc3+ {[%clk 0:01:06]} 35. Kd2 {[%clk 0:00:01]}  Ne4+ {[%clk 0:01:06]} 36. fxe4 {[%clk 0:00:01]}  Rxc6 {[%clk 0:01:06]} 0-1


[Site "https://www.chess.com"]

[Event "Titled Tuesday Blitz August 08 Late 2023"]
[White "Lacey, Patrick"]
[Black "Sabar Ethmane Daouda"]
[WhiteFideId "2032007"]
[BlackFideId "19600097"]
[WhiteElo "2410"]
[BlackElo "2217"]
[Result "1-0"]
[Round "6"]
[TimeControl "180+1"]
[Date "2023.08.08"]
[WhiteClock "0:00:06"]
[BlackClock "0:00:00"]
[Board "125"]

1. Nf3 {[%clk 0:03:00]}  d5 {[%clk 0:02:59]} 2. c4 {[%clk 0:02:59]}  c6 {[%clk 0:02:58]} 3. cxd5 {[%clk 0:02:59]}  cxd5 {[%clk 0:02:59]} 4. d4 {[%clk 0:02:58]}  Nc6 {[%clk 0:02:59]} 5. Nc3 {[%clk 0:02:58]}  Bf5 {[%clk 0:02:57]} 6. Qb3 {[%clk 0:02:55]}  Nf6 {[%clk 0:02:45]} 7. Qxb7 {[%clk 0:02:50]}  Rc8 {[%clk 0:02:44]} 8. e3 {[%clk 0:02:43]}  Rc7 {[%clk 0:02:39]} 9. Qb3 {[%clk 0:02:42]}  e6 {[%clk 0:02:37]} 10. Bb5 {[%clk 0:02:39]}  Bd6 {[%clk 0:02:33]} 11. Bd2 {[%clk 0:02:34]}  O-O {[%clk 0:02:31]} 12. Ne2 {[%clk 0:02:33]}  Rb7 {[%clk 0:02:24]} 13. Qa4 {[%clk 0:02:28]}  Nb4 {[%clk 0:01:51]} 14. Bxb4 {[%clk 0:02:17]}  Bxb4+ {[%clk 0:01:52]} 15. Qxb4 {[%clk 0:02:15]}  a6 {[%clk 0:01:53]} 16. a4 {[%clk 0:02:14]}  axb5 {[%clk 0:01:53]} 17. axb5 {[%clk 0:02:14]}  Qb6 {[%clk 0:01:53]} 18. Nc3 {[%clk 0:02:14]}  Bd3 {[%clk 0:01:49]} 19. Ra5 {[%clk 0:01:30]}  Rfb8 {[%clk 0:01:43]} 20. Ne5 {[%clk 0:01:30]}  Bc4 {[%clk 0:00:59]} 21. Nxc4 {[%clk 0:01:22]}  dxc4 {[%clk 0:01:00]} 22. O-O {[%clk 0:01:22]}  Nd5 {[%clk 0:00:51]} 23. Nxd5 {[%clk 0:01:21]}  exd5 {[%clk 0:00:52]} 24. Rfa1 {[%clk 0:01:21]}  h5 {[%clk 0:00:46]} 25. b3 {[%clk 0:01:17]}  cxb3 {[%clk 0:00:25]} 26. Qxb3 {[%clk 0:01:17]}  Qd6 {[%clk 0:00:19]} 27. g3 {[%clk 0:01:08]}  h4 {[%clk 0:00:18]} 28. Ra6 {[%clk 0:01:04]}  Qd7 {[%clk 0:00:16]} 29. b6 {[%clk 0:01:00]}  h3 {[%clk 0:00:13]} 30. R1a5 {[%clk 0:00:54]}  Qg4 {[%clk 0:00:07]} 31. Qd3 {[%clk 0:00:18]}  Qf3 {[%clk 0:00:05]} 32. Qf1 {[%clk 0:00:18]}  Rxb6 {[%clk 0:00:05]} 33. Rxb6 {[%clk 0:00:17]}  Rxb6 {[%clk 0:00:06]} 34. Ra8+ {[%clk 0:00:16]}  Kh7 {[%clk 0:00:05]} 35. Qxh3+ {[%clk 0:00:17]}  Kg6 {[%clk 0:00:06]} 36. Qf1 {[%clk 0:00:13]}  Rb2 {[%clk 0:00:04]} 37. Ra6+ {[%clk 0:00:08]}  f6 {[%clk 0:00:03]} 38. Ra1 {[%clk 0:00:08]}  Rd2 {[%clk 0:00:02]} 39. Qg2 {[%clk 0:00:08]}  Qe2 {[%clk 0:00:01]} 40. Rf1 {[%clk 0:00:07]}  Qc4 {[%clk 0:00:01]} 41. Qf3 {[%clk 0:00:07]}  Kf7 {[%clk 0:00:00]} 42. h4 {[%clk 0:00:06]} 1-0


[Site "https://www.chess.com"]

[Event "Titled Tuesday Blitz August 08 Late 2023"]
[White "KorolDimitriy75"]
[Black "Guevara Sanchez, Erick Marvin"]
[BlackFideId "6700136"]
[WhiteElo "2405"]
[BlackElo "2134"]
[Result "1-0"]
[Round "6"]
[TimeControl "180+1"]
[Date "2023.08.08"]
[WhiteClock "0:00:20"]
[BlackClock "0:00:27"]
[Board "127"]

1. d4 {[%clk 0:03:00]}  Nf6 {[%clk 0:02:59]} 2. c4 {[%clk 0:03:01]}  e6 {[%clk 0:02:59]} 3. Nc3 {[%clk 0:03:01]}  Bb4 {[%clk 0:03:00]} 4. Qc2 {[%clk 0:03:01]}  O-O {[%clk 0:02:59]} 5. e4 {[%clk 0:03:01]}  d5 {[%clk 0:02:57]} 6. cxd5 {[%clk 0:03:02]}  exd5 {[%clk 0:02:57]} 7. e5 {[%clk 0:03:03]}  Ne4 {[%clk 0:02:57]} 8. Bd3 {[%clk 0:03:03]}  f5 {[%clk 0:02:45]} 9. Ne2 {[%clk 0:03:02]}  Be6 {[%clk 0:02:42]} 10. O-O {[%clk 0:02:50]}  Nd7 {[%clk 0:02:39]} 11. Nf4 {[%clk 0:02:45]}  Qe7 {[%clk 0:02:31]} 12. Ncxd5 {[%clk 0:02:33]}  Qf7 {[%clk 0:02:11]} 13. Nxe6 {[%clk 0:02:28]}  Qxe6 {[%clk 0:02:10]} 14. Nxb4 {[%clk 0:02:25]}  Kh8 {[%clk 0:02:08]} 15. Bxe4 {[%clk 0:02:16]}  fxe4 {[%clk 0:02:08]} 16. Qxe4 {[%clk 0:02:17]}  Nf6 {[%clk 0:02:07]} 17. Qh4 {[%clk 0:02:07]}  Ng4 {[%clk 0:01:48]} 18. h3 {[%clk 0:02:04]}  Nh6 {[%clk 0:01:43]} 19. Bxh6 {[%clk 0:02:00]}  gxh6 {[%clk 0:01:43]} 20. b3 {[%clk 0:01:35]}  Rf7 {[%clk 0:01:42]} 21. f4 {[%clk 0:01:08]}  Qb6 {[%clk 0:01:27]} 22. Nc2 {[%clk 0:01:07]}  Rg8 {[%clk 0:01:27]} 23. Rf2 {[%clk 0:01:04]}  c5 {[%clk 0:01:18]} 24. d5 {[%clk 0:00:57]}  c4 {[%clk 0:01:17]} 25. bxc4 {[%clk 0:00:55]}  Rfg7 {[%clk 0:01:13]} 26. Ne1 {[%clk 0:00:46]}  Qd4 {[%clk 0:01:07]} 27. Rc1 {[%clk 0:00:43]}  Rg6 {[%clk 0:01:04]} 28. Rc2 {[%clk 0:00:35]}  Qe4 {[%clk 0:01:01]} 29. Rce2 {[%clk 0:00:33]}  Qxc4 {[%clk 0:01:01]} 30. e6 {[%clk 0:00:31]}  Qxd5 {[%clk 0:00:57]} 31. e7 {[%clk 0:00:28]}  Re8 {[%clk 0:00:56]} 32. f5 {[%clk 0:00:25]}  Rg5 {[%clk 0:00:56]} 33. f6 {[%clk 0:00:23]}  Qf7 {[%clk 0:00:55]} 34. Qxh6 {[%clk 0:00:22]}  Rg6 {[%clk 0:00:54]} 35. Qe3 {[%clk 0:00:21]}  a6 {[%clk 0:00:46]} 36. Qe6 {[%clk 0:00:21]}  Kg8 {[%clk 0:00:40]} 37. Nd3 {[%clk 0:00:19]}  Qxe6 {[%clk 0:00:28]} 38. Rxe6 {[%clk 0:00:19]}  Kf7 {[%clk 0:00:28]} 39. Rb6 {[%clk 0:00:19]}  Rb8 {[%clk 0:00:27]} 40. Ne5+ {[%clk 0:00:19]}  Kg8 {[%clk 0:00:26]} 41. Nxg6 {[%clk 0:00:19]}  hxg6 {[%clk 0:00:27]} 42. f7+ {[%clk 0:00:19]}  Kg7 {[%clk 0:00:27]} 43. f8=Q+ {[%clk 0:00:20]}  Rxf8 {[%clk 0:00:27]} 44. exf8=Q+ {[%clk 0:00:20]}  Kh7 {[%clk 0:00:27]} 45. Rf7# {[%clk 0:00:20]} 1-0


[Site "https://www.chess.com"]

[Event "Titled Tuesday Blitz August 08 Late 2023"]
[White "Gabdushev, Ruslan"]
[Black "laskakid"]
[WhiteFideId "4137833"]
[WhiteElo "2399"]
[BlackElo "2095"]
[Result "0-1"]
[Round "6"]
[TimeControl "180+1"]
[Date "2023.08.08"]
[WhiteClock "0:00:27"]
[BlackClock "0:00:40"]
[Board "129"]

1. g3 {[%clk 0:02:58]}  Nf6 {[%clk 0:02:54]} 2. Bg2 {[%clk 0:02:54]}  g6 {[%clk 0:02:54]} 3. c3 {[%clk 0:02:53]}  Bg7 {[%clk 0:02:51]} 4. e4 {[%clk 0:02:51]}  e5 {[%clk 0:02:47]} 5. d4 {[%clk 0:02:44]}  d6 {[%clk 0:02:40]} 6. dxe5 {[%clk 0:02:41]}  dxe5 {[%clk 0:02:40]} 7. Qxd8+ {[%clk 0:02:41]}  Kxd8 {[%clk 0:02:40]} 8. h3 {[%clk 0:02:35]}  Be6 {[%clk 0:02:34]} 9. Be3 {[%clk 0:02:34]}  Nbd7 {[%clk 0:02:31]} 10. Nd2 {[%clk 0:02:34]}  a5 {[%clk 0:02:26]} 11. f4 {[%clk 0:02:28]}  Nh5 {[%clk 0:02:14]} 12. Ne2 {[%clk 0:02:26]}  Bh6 {[%clk 0:02:04]} 13. Kf2 {[%clk 0:02:20]}  Rf8 {[%clk 0:01:44]} 14. f5 {[%clk 0:01:56]}  Bxe3+ {[%clk 0:01:39]} 15. Kxe3 {[%clk 0:01:55]}  gxf5 {[%clk 0:01:32]} 16. exf5 {[%clk 0:01:55]}  Bxf5 {[%clk 0:01:21]} 17. g4 {[%clk 0:01:54]}  Nf4 {[%clk 0:01:21]} 18. Nxf4 {[%clk 0:01:49]}  exf4+ {[%clk 0:01:21]} 19. Kxf4 {[%clk 0:01:49]}  Be6 {[%clk 0:01:17]} 20. b3 {[%clk 0:01:36]}  c6 {[%clk 0:01:11]} 21. Ne4 {[%clk 0:01:32]}  h6 {[%clk 0:01:04]} 22. c4 {[%clk 0:01:22]}  f5 {[%clk 0:00:59]} 23. gxf5 {[%clk 0:01:21]}  Rxf5+ {[%clk 0:00:58]} 24. Ke3 {[%clk 0:01:20]}  a4 {[%clk 0:00:56]} 25. b4 {[%clk 0:01:04]}  Kc7 {[%clk 0:00:54]} 26. c5 {[%clk 0:01:02]}  Rg8 {[%clk 0:00:50]} 27. Bf3 {[%clk 0:01:01]}  Ne5 {[%clk 0:00:45]} 28. Bg4 {[%clk 0:00:54]}  Nxg4+ {[%clk 0:00:43]} 29. hxg4 {[%clk 0:00:55]}  Rxg4 {[%clk 0:00:41]} 30. Rxh6 {[%clk 0:00:27]}  Re5 {[%clk 0:00:40]} 0-1


[Site "https://www.chess.com"]

[Event "Titled Tuesday Blitz August 08 Late 2023"]
[White "Djordjevic, Dejan N"]
[Black "Muhammad Shahzeb"]
[WhiteFideId "913316"]
[BlackFideId "7804806"]
[WhiteElo "2053"]
[BlackElo "2398"]
[Result "1-0"]
[Round "6"]
[TimeControl "180+1"]
[Date "2023.08.08"]
[WhiteClock "0:00:49"]
[BlackClock "0:00:00"]
[Board "130"]

1. e4 {[%clk 0:03:00]}  d5 {[%clk 0:02:48]} 2. exd5 {[%clk 0:03:00]}  Nf6 {[%clk 0:02:36]} 3. d4 {[%clk 0:03:00]}  Nxd5 {[%clk 0:02:36]} 4. Nf3 {[%clk 0:03:00]}  Nb6 {[%clk 0:02:37]} 5. c4 {[%clk 0:02:58]}  g6 {[%clk 0:02:38]} 6. Nc3 {[%clk 0:02:58]}  Bg7 {[%clk 0:02:38]} 7. h3 {[%clk 0:02:58]}  O-O {[%clk 0:02:38]} 8. Be3 {[%clk 0:02:58]}  Nc6 {[%clk 0:02:39]} 9. Be2 {[%clk 0:02:57]}  e5 {[%clk 0:02:39]} 10. d5 {[%clk 0:02:57]}  Ne7 {[%clk 0:02:39]} 11. O-O {[%clk 0:02:51]}  Nf5 {[%clk 0:02:36]} 12. Bc5 {[%clk 0:02:49]}  Re8 {[%clk 0:02:34]} 13. Rc1 {[%clk 0:02:44]}  Nd7 {[%clk 0:02:30]} 14. Ba3 {[%clk 0:02:41]}  e4 {[%clk 0:02:30]} 15. Nh2 {[%clk 0:02:35]}  e3 {[%clk 0:02:10]} 16. f4 {[%clk 0:02:18]}  Ng3 {[%clk 0:02:01]} 17. Rf3 {[%clk 0:02:18]}  Qh4 {[%clk 0:01:54]} 18. Qe1 {[%clk 0:02:05]}  Nxe2+ {[%clk 0:01:50]} 19. Nxe2 {[%clk 0:02:04]}  Qd8 {[%clk 0:01:45]} 20. Nf1 {[%clk 0:01:58]}  Nf6 {[%clk 0:01:28]} 21. Rxe3 {[%clk 0:01:55]}  Bf5 {[%clk 0:01:18]} 22. Neg3 {[%clk 0:01:46]}  Qd7 {[%clk 0:01:15]} 23. Re7 {[%clk 0:01:30]}  Rxe7 {[%clk 0:01:08]} 24. Qxe7 {[%clk 0:01:30]}  Qa4 {[%clk 0:01:00]} 25. b3 {[%clk 0:01:28]}  Qa5 {[%clk 0:00:53]} 26. Nxf5 {[%clk 0:01:27]}  gxf5 {[%clk 0:00:52]} 27. Ng3 {[%clk 0:01:14]}  Re8 {[%clk 0:00:50]} 28. Qb4 {[%clk 0:01:13]}  Qa6 {[%clk 0:00:39]} 29. Nxf5 {[%clk 0:01:11]}  Bf8 {[%clk 0:00:30]} 30. d6 {[%clk 0:00:57]}  cxd6 {[%clk 0:00:16]} 31. Bb2 {[%clk 0:00:56]}  d5 {[%clk 0:00:13]} 32. Qc3 {[%clk 0:00:56]}  Qb6+ {[%clk 0:00:02]} 33. Kh1 {[%clk 0:00:55]}  Qe6 {[%clk 0:00:01]} 34. Qxf6 {[%clk 0:00:54]}  Qxf6 {[%clk 0:00:02]} 35. Bxf6 {[%clk 0:00:54]}  Re2 {[%clk 0:00:02]} 36. cxd5 {[%clk 0:00:51]}  Rf2 {[%clk 0:00:02]} 37. g3 {[%clk 0:00:50]}  h5 {[%clk 0:00:01]} 38. h4 {[%clk 0:00:50]}  Rxa2 {[%clk 0:00:01]} 39. d6 {[%clk 0:00:50]}  Rd2 {[%clk 0:00:00]} 40. Rc8 {[%clk 0:00:49]} 1-0


[Site "https://www.chess.com"]

[Event "Titled Tuesday Blitz August 08 Late 2023"]
[White "Carrasco Miranda, Andres"]
[Black "Michalczak, Thomas"]
[WhiteFideId "3405990"]
[BlackFideId "4622634"]
[WhiteElo "2345"]
[BlackElo "2485"]
[Result "1/2-1/2"]
[Round "6"]
[TimeControl "180+1"]
[Date "2023.08.08"]
[WhiteClock "0:00:23"]
[BlackClock "0:00:24"]
[Board "131"]

1. d4 {[%clk 0:02:53]}  Nf6 {[%clk 0:02:59]} 2. c4 {[%clk 0:02:43]}  e6 {[%clk 0:02:59]} 3. g3 {[%clk 0:02:40]}  d5 {[%clk 0:02:57]} 4. Bg2 {[%clk 0:02:40]}  Be7 {[%clk 0:02:56]} 5. Nf3 {[%clk 0:02:40]}  O-O {[%clk 0:02:56]} 6. O-O {[%clk 0:02:41]}  dxc4 {[%clk 0:02:56]} 7. Qa4 {[%clk 0:02:39]}  a6 {[%clk 0:02:54]} 8. Qxc4 {[%clk 0:02:40]}  b5 {[%clk 0:02:55]} 9. Qc2 {[%clk 0:02:40]}  Bb7 {[%clk 0:02:55]} 10. Bd2 {[%clk 0:02:41]}  Ra7 {[%clk 0:02:42]} 11. Rc1 {[%clk 0:02:35]}  Bd6 {[%clk 0:02:33]} 12. Bg5 {[%clk 0:02:33]}  Nbd7 {[%clk 0:02:26]} 13. Nbd2 {[%clk 0:02:32]}  Qa8 {[%clk 0:02:25]} 14. Nb3 {[%clk 0:02:27]}  Be4 {[%clk 0:02:18]} 15. Qd2 {[%clk 0:02:22]}  a5 {[%clk 0:02:17]} 16. Nc5 {[%clk 0:02:19]}  Nxc5 {[%clk 0:02:05]} 17. dxc5 {[%clk 0:02:19]}  Be7 {[%clk 0:02:06]} 18. Ne1 {[%clk 0:02:07]}  Bxg2 {[%clk 0:02:04]} 19. Bxf6 {[%clk 0:02:06]}  Bxf6 {[%clk 0:01:50]} 20. Nxg2 {[%clk 0:02:06]}  Rd8 {[%clk 0:01:49]} 21. Qc2 {[%clk 0:02:03]}  c6 {[%clk 0:01:47]} 22. Rd1 {[%clk 0:02:01]}  Rad7 {[%clk 0:01:48]} 23. Rxd7 {[%clk 0:02:00]}  Rxd7 {[%clk 0:01:48]} 24. Ne1 {[%clk 0:01:43]}  Qd8 {[%clk 0:01:47]} 25. Nd3 {[%clk 0:01:43]}  Rd4 {[%clk 0:01:45]} 26. a4 {[%clk 0:01:41]}  Rc4 {[%clk 0:01:38]} 27. Qd1 {[%clk 0:01:36]}  b4 {[%clk 0:01:35]} 28. Rc1 {[%clk 0:01:03]}  Rd4 {[%clk 0:01:28]} 29. b3 {[%clk 0:01:03]}  Rd5 {[%clk 0:01:26]} 30. Rc4 {[%clk 0:01:00]}  Bd4 {[%clk 0:01:21]} 31. Qc2 {[%clk 0:00:48]}  e5 {[%clk 0:01:16]} 32. Kg2 {[%clk 0:00:26]}  h6 {[%clk 0:00:53]} 33. Ne1 {[%clk 0:00:26]}  Bc3 {[%clk 0:00:52]} 34. Nf3 {[%clk 0:00:23]}  Qe7 {[%clk 0:00:39]} 35. Qf5 {[%clk 0:00:22]}  Rxc5 {[%clk 0:00:30]} 36. Rxc5 {[%clk 0:00:22]}  Qxc5 {[%clk 0:00:30]} 37. Qc8+ {[%clk 0:00:22]}  Kh7 {[%clk 0:00:30]} 38. Qf5+ {[%clk 0:00:23]}  Kg8 {[%clk 0:00:30]} 39. Qc8+ {[%clk 0:00:23]}  Kh7 {[%clk 0:00:24]} 40. Qf5+ {[%clk 0:00:23]}  Kg8 {[%clk 0:00:24]} 1/2-1/2


[Site "https://www.chess.com"]